fUST/lending_fUST_20250601
["ID","MTS","AMOUNT","RATE_DAILY","PERIOD"]
[363557065,1748767841269,-430.0,0.00016438,2]
[363557066,1748767841278,-430.0,0.00016438,2]
[363557068,1748767841287,-445.99,0.00016438,2]
[363557070,1748767841297,-430.0,0.00016438,2]
[363557072,1748767841306,-549.96980953,0.00016438,2]
[363557074,1748767841316,-430.0,0.00016438,2]
[363557076,1748767841326,-502.40494254,0.00016438,2]
[363557078,1748767841336,-430.0,0.00016438,2]
[363557079,1748767841345,-430.0,0.00016438,2]
[363557081,1748767841355,-430.0,0.00016438,2]
[363557083,1748767841365,-430.0,0.00016438,2]
[363557085,1748767841375,-430.0,0.00016438,2]
[363557087,1748767841385,-430.0,0.00016438,2]
[363557089,1748767841394,-430.0,0.00016438,2]
[363557091,1748767841403,-430.81940652,0.00016438,2]
[363557092,1748767841412,-430.0,0.00016438,2]
[363557094,1748767841422,-430.0,0.00016438,2]
[363557096,1748767841432,-826.98,0.00016438,2]
[363557098,1748767841442,-430.0,0.00016438,2]
[363557100,1748767841452,-430.0,0.00016438,2]
[363557102,1748767841461,-430.0,0.00016438,2]
[363557104,1748767841470,-1577.25,0.00016438,2]
[363557106,1748767841480,-430.0,0.00016438,2]
[363557107,1748767841490,-431.81720152,0.00016438,2]
[363557109,1748767841500,-430.0,0.00016438,2]
[363557111,1748767841509,-400.0,0.00016438,2]
[363557113,1748767841520,-430.0,0.00016438,2]
[363557115,1748767841530,-430.0,0.00016438,2]
[363557117,1748767841540,-430.0,0.00016438,2]
[363557118,1748767841550,-430.0,0.00016438,2]
[363557120,1748767841560,-902.33,0.00016438,2]
[363557122,1748767841569,-430.0,0.00016438,2]
[363557124,1748767841579,-436.98133384,0.00016438,2]
[363557126,1748767841589,-430.0,0.00016438,2]
[363557128,1748767841599,-430.0,0.00016438,2]
[363557130,1748767841609,-430.0,0.00016438,2]
[363557131,1748767841621,-430.7358873,0.00016438,2]
[363557133,1748767841630,-430.0,0.00016438,2]
[363557135,1748767841640,-430.0,0.00016438,2]
[363557137,1748767841650,-430.0,0.00016438,2]
[363557139,1748767841660,-430.73386615,0.00016438,2]
[363557141,1748767841670,-430.0,0.00016438,2]
[363557143,1748767841680,-430.0,0.00016438,2]
[363557145,1748767841689,-430.0,0.00016438,2]
[363557146,1748767841700,-430.0,0.00016438,2]
[363557148,1748767841710,-430.0,0.00016438,2]
[363557150,1748767841720,-430.0,0.00016438,2]
[363557152,1748767841730,-430.0,0.00016438,2]
[363557154,1748767841740,-430.0,0.00016438,2]
[363557156,1748767841749,-430.0,0.00016438,2]
[363557158,1748767841759,-464.96617104,0.00016438,2]
[363557159,1748767841768,-430.0,0.00016438,2]
[363557161,1748767841778,-447.56,0.00016438,2]
[363557163,1748767841788,-708.96,0.00016438,2]
[363557165,1748767841798,-430.0,0.00016438,2]
[363557167,1748767841807,-589.74,0.00016438,2]
[363557169,1748767841816,-430.0,0.00016438,2]
[363557171,1748767841826,-430.0,0.00016438,2]
[363557173,1748767841836,-1273.19,0.00016438,2]
[363557174,1748767841846,-430.0,0.00016438,2]
[363557176,1748767841856,-430.0,0.00016438,2]
[363557178,1748767841865,-292.28114959,0.00016438,2]
[363557180,1748767841875,-430.0,0.00016438,2]
[363557182,1748767841885,-430.0,0.00016438,2]
[363557184,1748767841894,-430.0,0.00016438,2]
[363557186,1748767841903,-430.0,0.00016438,2]
[363557187,1748767841913,-430.0,0.00016438,2]
[363557189,1748767841923,-430.0,0.00016438,2]
[363557191,1748767841932,-432.81222537,0.00016438,2]
[363557193,1748767841942,-430.0,0.00016438,2]
[363557195,1748767841954,-430.0,0.00016438,2]
[363557197,1748767841965,-430.0,0.00016438,2]
[363557198,1748767841975,-400.0,0.00016438,2]
[363557200,1748767841984,-430.0,0.00016438,2]
[363557202,1748767841995,-375.87908355,0.00016438,2]
[363557204,1748767842004,-434.69142801,0.00016438,2]
[363557206,1748767842013,-430.0,0.00016438,2]
[363557208,1748767842023,-430.0,0.00016438,2]
[363557210,1748767842033,-430.0,0.00016438,2]
[363557211,1748767842043,-430.0,0.00016438,2]
[363557213,1748767842052,-438.66,0.00016438,2]
[363557215,1748767842062,-430.0,0.00016438,2]
[363557217,1748767842071,-276.97095258,0.00016438,2]
[363557219,1748767842081,-430.0,0.00016438,2]
[363557221,1748767842091,-430.0,0.00016438,2]
[363557223,1748767842101,-430.0,0.00016438,2]
[363557224,1748767842110,-430.0,0.00016438,2]
[363557226,1748767842121,-430.0,0.00016438,2]
[363557228,1748767842131,-430.0,0.00016438,2]
[363557230,1748767842140,-430.0,0.00016438,2]
[363557232,1748767842150,-430.0,0.00016438,2]
[363557234,1748767842160,-275.71988708,0.00016438,2]
[363557236,1748767842169,-221.75640387,0.00016438,2]
[363557238,1748767842179,-430.0,0.00016438,2]
[363557240,1748767842189,-430.0,0.00016438,2]
[363557242,1748767842199,-430.0,0.00016438,2]
[363557244,1748767842208,-500.0,0.00016438,2]
[363557245,1748767842218,-430.0,0.00016438,2]
[363557247,1748767842228,-430.0,0.00016438,2]
[363557249,1748767842237,-430.0,0.00016438,2]
[363557251,1748767842246,-407.53370881,0.00016438,2]
[363557253,1748767842255,-430.0,0.00016438,2]
[363557254,1748767842265,-430.0,0.00016438,2]
[363557256,1748767842274,-430.0,0.00016438,2]
[363557258,1748767842284,-430.0,0.00016438,2]
[363557260,1748767842293,-430.0,0.00016438,2]
[363557262,1748767842303,-430.0,0.00016438,2]
[363557264,1748767842313,-430.0,0.00016438,2]
[363557266,1748767842323,-430.0,0.00016438,2]
[363557268,1748767842333,-430.0,0.00016438,2]
[363557269,1748767842342,-430.0,0.00016438,2]
[363557271,1748767842354,-430.0,0.00016438,2]
[363557273,1748767842364,-432.12186968,0.00016438,2]
[363557275,1748767842374,-428.81033719,0.00016438,2]
[363557277,1748767842384,-430.0,0.00016438,2]
[363557279,1748767842393,-430.0,0.00016438,2]
[363557280,1748767842402,-430.0,0.00016438,2]
[363557282,1748767842413,-402.87135352,0.00016438,2]
[363557287,1748767842449,-27.12864648,0.00016438,2]
[363557288,1748767842459,-500.0,0.00016438,2]
[363557290,1748767842469,-159.4109647,0.00016438,2]
[363557292,1748767842480,-500.65669281,0.00016438,2]
[363557294,1748767842489,-327.31720188,0.00016438,2]
[363557312,1748767842631,-102.68279812,0.00016438,2]
[363557314,1748767842641,-430.0,0.00016438,2]
[363557316,1748767842651,-430.0,0.00016438,2]
[363557319,1748767842660,-267.15036327,0.00016438,2]
[363557322,1748767842671,-575.25205027,0.00016438,2]
[363557325,1748767842681,-430.0,0.00016438,2]
[363557328,1748767842690,-680.96,0.00016438,2]
[363557329,1748767842699,-430.0,0.00016438,2]
[363557331,1748767842708,-430.0,0.00016438,2]
[363557333,1748767842718,-430.0,0.00016438,2]
[363557335,1748767842727,-430.0,0.00016438,2]
[363557337,1748767842737,-430.0,0.00016438,2]
[363557339,1748767842746,-430.0,0.00016438,2]
[363557341,1748767842756,-430.0,0.00016438,2]
[363557342,1748767842765,-430.0,0.00016438,2]
[363557344,1748767842775,-430.0,0.00016438,2]
[363557346,1748767842785,-563.81706226,0.00016438,2]
[363557349,1748767842794,-430.0,0.00016438,2]
[363557351,1748767842804,-1452.13,0.00016438,2]
[363557353,1748767842813,-430.0,0.00016438,2]
[363557355,1748767842822,-430.0,0.00016438,2]
[363557357,1748767842832,-430.0,0.00016438,2]
[363557359,1748767842841,-430.0,0.00016438,2]
[363557360,1748767842850,-430.0,0.00016438,2]
[363557362,1748767842860,-790.6,0.00016438,2]
[363557364,1748767842870,-430.0,0.00016438,2]
[363557366,1748767842880,-430.0,0.00016438,2]
[363557368,1748767842890,-430.0,0.00016438,2]
[363557370,1748767842899,-430.0,0.00016438,2]
[363557372,1748767842909,-325.37708043,0.00016438,2]
[363557374,1748767842919,-430.0,0.00016438,2]
[363557376,1748767842928,-348.63977169,0.00016438,2]
[363557382,1748767842993,-151.36022831,0.00016438,2]
[363557384,1748767843003,-500.0,0.00016438,2]
[363557386,1748767843013,-500.0,0.00016438,2]
[363557388,1748767843022,-430.0,0.00016438,2]
[363557390,1748767843032,-500.0,0.00016438,2]
[363557392,1748767843041,-10.9759486,0.00016438,2]
[363557394,1748767843054,-489.0240514,0.00016438,2]
[363557396,1748767843063,-51.42517267,0.00016438,2]
[363557415,1748767843271,-378.57482733,0.00016438,2]
[363557417,1748767843281,-500.0,0.00016438,2]
[363557419,1748767843291,-500.0,0.00016438,2]
[363557421,1748767843301,-500.0,0.00016438,2]
[363557423,1748767843310,-500.0,0.00016438,2]
[363557425,1748767843320,-500.0,0.00016438,2]
[363557428,1748767843329,-500.0,0.00016438,2]
[363557430,1748767843339,-421.50602996,0.00016438,2]
[363557431,1748767843348,-430.0,0.00016438,2]
[363557433,1748767843358,-430.0,0.00016438,2]
[363557436,1748767843367,-430.0,0.00016438,2]
[363557438,1748767843378,-544.16697697,0.00016438,2]
[363557440,1748767843391,-430.0,0.00016438,2]
[363557442,1748767843400,-442.45751134,0.00016438,2]
[363557444,1748767843410,-314.26497646,0.00016438,2]
[363557446,1748767843419,-430.0,0.00016438,2]
[363557448,1748767843428,-430.0,0.00016438,2]
[363557449,1748767843438,-430.0,0.00016438,2]
[363557451,1748767843448,-430.0,0.00016438,2]
[363557452,1748767843457,-430.51152761,0.00016438,2]
[363557453,1748767843468,-430.0,0.00016438,2]
[363557454,1748767843477,-430.0,0.00016438,2]
[363557455,1748767843486,-430.0,0.00016438,2]
[363557456,1748767843495,-430.0,0.00016438,2]
[363557457,1748767843504,-430.0,0.00016438,2]
[363557458,1748767843514,-430.0,0.00016438,2]
[363557459,1748767843524,-430.0,0.00016438,2]
[363557460,1748767843533,-430.0,0.00016438,2]
[363557461,1748767843542,-430.0,0.00016438,2]
[363557462,1748767843551,-430.0,0.00016438,2]
[363557463,1748767843560,-430.0,0.00016438,2]
[363557464,1748767843569,-430.0,0.00016438,2]
[363557465,1748767843578,-430.0,0.00016438,2]
[363557466,1748767843587,-430.0,0.00016438,2]
[363557467,1748767843596,-430.0,0.00016438,2]
[363557468,1748767843606,-1636.55,0.00016438,2]
[363557469,1748767843615,-430.0,0.00016438,2]
[363557470,1748767843624,-430.0,0.00016438,2]
[363557471,1748767843633,-430.0,0.00016438,2]
[363557472,1748767843642,-430.0,0.00016438,2]
[363557473,1748767843651,-611.28,0.00016438,2]
[363557474,1748767843660,-430.0,0.00016438,2]
[363557475,1748767843669,-430.0,0.00016438,2]
[363557476,1748767843678,-430.0,0.00016438,2]
[363557477,1748767843687,-430.0,0.00016438,2]
[363557478,1748767843696,-430.0,0.00016438,2]
[363557479,1748767843705,-430.0,0.00016438,2]
[363557480,1748767843714,-550.24,0.00016438,2]
[363557481,1748767843723,-430.0,0.00016438,2]
[363557482,1748767843732,-430.0,0.00016438,2]
[363557483,1748767843741,-401.70462869,0.00016438,2]
[363557484,1748767843750,-430.0,0.00016438,2]
[363557485,1748767843759,-15358.28,0.00016438,2]
[363557486,1748767843768,-430.0,0.00016438,2]
[363557487,1748767843778,-430.0,0.00016438,2]
[363557488,1748767843788,-430.6737542,0.00016438,2]
[363557489,1748767843798,-430.0,0.00016438,2]
[363557490,1748767843807,-430.0,0.00016438,2]
[363557491,1748767843818,-433.05810381,0.00016438,2]
[363557492,1748767843827,-430.0,0.00016438,2]
[363557494,1748767843839,-430.0,0.00016438,2]
[363557496,1748767843848,-430.0,0.00016438,2]
[363557498,1748767843858,-430.0,0.00016438,2]
[363557501,1748767843868,-430.0,0.00016438,2]
[363557504,1748767843877,-195.40279732,0.00016438,2]
[363557507,1748767843888,-430.0,0.00016438,2]
[363557510,1748767843898,-430.0,0.00016438,2]
[363557513,1748767843908,-430.0,0.00016438,2]
[363557516,1748767843918,-235.74534492,0.00016438,2]
[363557520,1748767843928,-430.0,0.00016438,2]
[363557523,1748767843938,-857.55,0.00016438,2]
[363557526,1748767843948,-430.0,0.00016438,2]
[363557529,1748767843963,-430.0,0.00016438,2]
[363557533,1748767843973,-433.56780728,0.00016438,2]
[363557536,1748767843983,-430.0,0.00016438,2]
[363557538,1748767843993,-184.0,0.00016438,3]
[363557540,1748767844003,-746.02536152,0.00016452,2]
[363557543,1748767844013,-500.0,0.00016465,2]
[363557546,1748767844025,-203.09275691,0.00016465,2]
[363557548,1748767844036,-500.0,0.00016473,2]
[363557550,1748767844046,-500.0,0.00016493,2]
[363557553,1748767844059,-207.4,0.000165,2]
[363557555,1748767844070,-300.0,0.000165,2]
[363557557,1748767844079,-300.0,0.000165,2]
[363557559,1748767844089,-300.0,0.000165,2]
[363557561,1748767844099,-300.0,0.000165,2]
[363557563,1748767844109,-300.0,0.000165,2]
[363557565,1748767844120,-300.0,0.000165,2]
[363557567,1748767844131,-300.0,0.000165,2]
[363557569,1748767844141,-300.0,0.000165,2]
[363557571,1748767844151,-300.0,0.000165,2]
[363557573,1748767844161,-300.0,0.000165,2]
[363557575,1748767844171,-300.0,0.000165,2]
[363557578,1748767844181,-3784.4197749,0.000165,2]
[363557579,1748767844190,-300.0,0.000165,2]
[363557581,1748767844200,-300.0,0.000165,2]
[363557583,1748767844209,-300.0,0.000165,2]
[363557585,1748767844219,-300.0,0.000165,2]
[363557587,1748767844229,-500.0,0.0001652,2]
[363557589,1748767844238,-500.0,0.00016548,2]
[363557591,1748767844248,-509.07937887,0.00016548,3]
[363557593,1748767844258,-500.0,0.00016575,2]
[363557595,1748767844267,-500.0,0.00016602,2]
[363557598,1748767844278,-500.0,0.0001663,2]
[363557600,1748767844288,-193.0,0.00016643,2]
[363557601,1748767844298,-500.0,0.00016657,2]
[363557604,1748767844307,-2170.28754308,0.00016681,2]
[363557606,1748767844318,-500.0,0.00016685,2]
[363557608,1748767844328,-500.0,0.00016712,2]
[363557610,1748767844338,-151.0,0.00016712,2]
[363557612,1748767844348,-151.0,0.00016712,2]
[363557614,1748767844359,-151.0,0.00016712,2]
[363557616,1748767844371,-151.0,0.00016712,2]
[363557618,1748767844381,-151.0,0.00016712,2]
[363557620,1748767844392,-151.0,0.00016712,2]
[363557622,1748767844401,-248.354092,0.00016712,2]
[363557624,1748767844411,-248.354092,0.00016712,2]
[363557626,1748767844421,-430.0,0.00016712,2]
[363557628,1748767844431,-430.0,0.00016712,2]
[363557630,1748767844441,-430.0,0.00016712,2]
[363557632,1748767844451,-418.4218042,0.00016712,2]
[363557634,1748767844460,-245.31676408,0.00016712,2]
[363557636,1748767844470,-573.3,0.00016712,2]
[363557638,1748767844480,-619.17,0.00016712,2]
[363557640,1748767844490,-430.0,0.00016712,2]
[363557642,1748767844500,-430.0,0.00016712,2]
[363557644,1748767844509,-430.0,0.00016712,2]
[363557646,1748767844518,-430.0,0.00016712,2]
[363557648,1748767844528,-430.0,0.00016712,2]
[363557650,1748767844538,-430.0,0.00016712,2]
[363557652,1748767844548,-430.0,0.00016712,2]
[363557654,1748767844558,-162.19446849,0.00016712,2]
[363557656,1748767844568,-430.0,0.00016712,2]
[363557658,1748767844577,-430.0,0.00016712,2]
[363557660,1748767844587,-430.0,0.00016712,2]
[363557662,1748767844597,-430.0,0.00016712,2]
[363557664,1748767844606,-430.0,0.00016712,2]
[363557666,1748767844616,-430.0,0.00016712,2]
[363557668,1748767844627,-430.0,0.00016712,2]
[363557671,1748767844637,-430.0,0.00016712,2]
[363557673,1748767844647,-350.0,0.00016712,2]
[363557675,1748767844657,-430.0,0.00016712,2]
[363557677,1748767844668,-430.0,0.00016712,2]
[363557679,1748767844678,-171.29780201,0.00016712,2]
[363557681,1748767844687,-430.0,0.00016712,2]
[363557683,1748767844697,-573.2572686,0.00016712,2]
[363557685,1748767844706,-430.0,0.00016712,2]
[363557687,1748767844716,-430.0,0.00016712,2]
[363557689,1748767844726,-430.0,0.00016712,2]
[363557691,1748767844735,-517.67681305,0.00016712,2]
[363557693,1748767844745,-430.0,0.00016712,2]
[363557695,1748767844755,-430.0,0.00016712,2]
[363557697,1748767844764,-430.0,0.00016712,2]
[363557699,1748767844774,-430.0,0.00016712,2]
[363557701,1748767844785,-430.0,0.00016712,2]
[363557703,1748767844794,-430.0,0.00016712,2]
[363557705,1748767844804,-430.0,0.00016712,2]
[363557707,1748767844813,-430.0,0.00016712,2]
[363557709,1748767844822,-430.0,0.00016712,2]
[363557711,1748767844832,-430.0,0.00016712,2]
[363557714,1748767844842,-430.0,0.00016712,2]
[363557716,1748767844853,-430.0,0.00016712,2]
[363557718,1748767844862,-430.0,0.00016712,2]
[363557720,1748767844873,-430.0,0.00016712,2]
[363557722,1748767844882,-430.0,0.00016712,2]
[363557724,1748767844892,-430.0,0.00016712,2]
[363557726,1748767844901,-430.0,0.00016712,2]
[363557728,1748767844912,-430.0,0.00016712,2]
[363557730,1748767844922,-430.0,0.00016712,2]
[363557732,1748767844931,-430.0,0.00016712,2]
[363557734,1748767844941,-430.0,0.00016712,2]
[363557736,1748767844950,-430.0,0.00016712,2]
[363557738,1748767844964,-430.0,0.00016712,2]
[363557740,1748767844976,-430.0,0.00016712,2]
[363557742,1748767844986,-151.0,0.00016712,2]
[363557744,1748767844996,-430.0,0.00016712,2]
[363557746,1748767845006,-430.0,0.00016712,2]
[363557748,1748767845016,-430.0,0.00016712,2]
[363557750,1748767845026,-324.82145463,0.00016712,2]
[363557752,1748767845036,-430.0,0.00016712,2]
[363557754,1748767845046,-430.0,0.00016712,2]
[363557756,1748767845057,-430.0,0.00016712,2]
[363557758,1748767845067,-430.0,0.00016712,2]
[363557761,1748767845077,-2.24508817,0.00016712,2]
[363557919,1748767846222,-381.92818453,0.00016438,2]
[363557925,1748767846275,-48.07181547,0.00016438,2]
[363557927,1748767846286,-430.0,0.00016438,2]
[363557929,1748767846296,-430.0,0.00016438,2]
[363557931,1748767846306,-427.75491183,0.00016712,2]
[363557933,1748767846316,-430.0,0.00016712,2]
[363557935,1748767846326,-430.0,0.00016712,2]
[363557937,1748767846337,-430.0,0.00016712,2]
[363557939,1748767846348,-748.55,0.00016712,2]
[363557942,1748767846359,-430.0,0.00016712,2]
[363557944,1748767846370,-307.03695198,0.00016712,2]
[363557946,1748767846380,-430.0,0.00016712,2]
[363557948,1748767846391,-430.0,0.00016712,2]
[363557950,1748767846402,-28.58632072,0.00016712,2]
[363560797,1748767973727,156.5,0.00024658,120]
[363560800,1748768066266,58076.0,0.00024658,120]
[363560815,1748768295507,158.5431176,0.00014882,2]
[363560816,1748768386286,3058.54676465,0.00015,2]
[363560817,1748768386309,10903.15789474,0.00015,2]
[363560818,1748768386333,10903.15789474,0.00015,2]
[363560819,1748768386358,10903.15789474,0.00015,2]
[363560820,1748768386382,10903.15789474,0.00015,2]
[363560821,1748768386407,10903.15789474,0.00015,2]
[363560822,1748768386430,10903.15789474,0.00015,2]
[363560823,1748768386452,10903.15789474,0.00015,2]
[363560824,1748768386476,10903.15789474,0.00015,2]
[363560825,1748768386497,10903.15789474,0.00015,2]
[363560826,1748768386521,10903.15789474,0.00015,2]
[363560827,1748768386543,10903.15789474,0.00015,2]
[363560828,1748768386566,10903.15789474,0.00015,2]
[363560829,1748768386590,10903.15789474,0.00015,2]
[363560830,1748768386613,10903.15789474,0.00015,2]
[363560831,1748768386636,10903.15789474,0.00015,2]
[363560832,1748768386659,10903.15789474,0.00015,2]
[363560833,1748768386681,10903.15789474,0.00015,2]
[363560834,1748768386703,10903.15789474,0.00015,2]
[363560835,1748768386725,10903.15789474,0.00015,2]
[363560836,1748768386747,10903.15789474,0.00015,2]
[363560837,1748768386770,10903.15789474,0.00015,2]
[363560838,1748768386793,10903.15789474,0.00015,2]
[363560839,1748768386815,10903.15789474,0.00015,2]
[363560840,1748768386838,10903.15789474,0.00015,2]
[363560841,1748768386861,10903.15789474,0.00015,2]
[363560842,1748768386883,10903.15789474,0.00015,2]
[363560843,1748768386905,10903.15789474,0.00015,2]
[363560844,1748768386927,5163.89007737,0.00015,2]
[363560845,1748768506226,292809.57,0.000246,120]
[363560846,1748768538791,436.74117789,0.00015,2]
[363560847,1748768539619,222.85679451,0.00015,2]
[363560848,1748768539933,203.05068232,6.8e-07,2]
[363560849,1748768540440,222.85679452,0.00015,2]
[363560853,1748768673972,2616.88,0.00023,120]
[363560871,1748768806122,4653.76236813,0.00015,2]
[363560872,1748768806870,-202.24246841,0.00015,2]
[363560876,1748768838624,-143.99516346,0.00015,2]
[363560877,1748768838649,-765.3183213,0.00015497,2]
[363560878,1748768838677,-911.5418229,0.00015558,2]
[363560879,1748768840630,157.42707702,6.8e-07,2]
[363560880,1748768849087,-801.7436382,0.00015558,2]
[363560881,1748768849110,-264.23852933,0.00015945,2]
[363560882,1748768849132,-249.13622263,0.00016338,2]
[363560883,1748768849155,-384.43803576,0.00016424,2]
[363560885,1748768971119,-646.8,0.00014941,2]
[363560932,1748769032354,-84.62370979,0.00014941,2]
[363560934,1748769032364,-300.0,0.00015402,2]
[363560936,1748769032374,-300.0,0.00015402,2]
[363560938,1748769032383,-1200.0,0.00015402,2]
[363560940,1748769032393,-160.0,0.00015403,2]
[363560941,1748769032404,-5000.0,0.00015403,2]
[363560944,1748769032414,-237.583288,0.00015848,2]
[363560946,1748769032423,-246.9202109,0.00015931,2]
[363560947,1748769032433,-432.68775712,0.00016218,2]
[363560950,1748769032444,-1302.17252588,0.00016338,2]
[363560951,1748769032453,-217.99419481,0.00016338,2]
[363560954,1748769032463,-300.0,0.00016424,2]
[363560956,1748769032473,-1161.94,0.00016428,3]
[363560958,1748769032483,-580.97,0.00016428,3]
[363560959,1748769032493,-290.48,0.00016428,3]
[363560962,1748769032503,-871.49,0.00016428,3]
[363560964,1748769032513,-207.4,0.00016428,2]
[363560966,1748769032523,-300.0,0.00016428,2]
[363560967,1748769032532,-300.0,0.00016428,2]
[363560970,1748769032542,-300.0,0.00016428,2]
[363560972,1748769032553,-300.0,0.00016428,2]
[363560974,1748769032563,-300.0,0.00016428,2]
[363560977,1748769032572,-300.0,0.00016428,2]
[363560980,1748769032583,-300.0,0.00016428,2]
[363560983,1748769032592,-300.0,0.00016428,2]
[363560985,1748769032601,-300.0,0.00016428,2]
[363560988,1748769032611,-300.0,0.00016428,2]
[363560991,1748769032622,-446.14358159,0.00016428,2]
[363560995,1748769032632,-300.0,0.00016428,2]
[363560997,1748769032641,-300.0,0.00016428,2]
[363560999,1748769032650,-300.0,0.00016428,2]
[363561002,1748769032660,-300.0,0.00016428,2]
[363561004,1748769032670,-300.0,0.00016428,2]
[363561006,1748769032680,-266.16788464,0.00016436,2]
[363561009,1748769032691,-174.39068022,0.00016436,2]
[363561013,1748769032701,-433.28327269,0.00016437,2]
[363561016,1748769032710,-500.0,0.00016437,2]
[363561019,1748769032720,-500.0,0.00016437,2]
[363561022,1748769032730,-283.29037048,0.00016437,2]
[363561024,1748769032739,-500.0,0.00016437,2]
[363561027,1748769032749,-500.0,0.00016437,2]
[363561030,1748769032759,-500.0,0.00016437,2]
[363561033,1748769032769,-500.0,0.00016437,2]
[363561036,1748769032779,-500.0,0.00016437,2]
[363561039,1748769032789,-500.0,0.00016437,2]
[363561042,1748769032799,-500.0,0.00016437,2]
[363561045,1748769032810,-500.0,0.00016437,2]
[363561049,1748769032820,-574.32446536,0.00016437,2]
[363561052,1748769032831,-500.0,0.00016437,2]
[363561055,1748769032841,-500.0,0.00016437,2]
[363561058,1748769032851,-500.0,0.00016437,2]
[363561060,1748769032861,-500.0,0.00016437,2]
[363561062,1748769032872,-500.0,0.00016437,2]
[363561064,1748769032882,-500.0,0.00016437,2]
[363561066,1748769032892,-500.0,0.00016437,2]
[363561068,1748769032902,-450.0,0.00016437,2]
[363561070,1748769032913,-430.0,0.00016438,2]
[363561072,1748769032923,-430.0,0.00016438,2]
[363561074,1748769032936,-430.0,0.00016438,2]
[363561076,1748769032947,-430.0,0.00016438,2]
[363561079,1748769032957,-430.0,0.00016438,2]
[363561081,1748769032968,-181.75256617,0.00016438,2]
[363561083,1748769032978,-430.0,0.00016438,2]
[363561085,1748769032992,-430.0,0.00016438,2]
[363561087,1748769033001,-430.0,0.00016438,2]
[363561089,1748769033011,-430.0,0.00016438,2]
[363561091,1748769033020,-430.0,0.00016438,2]
[363561093,1748769033030,-301.65512096,0.00016438,2]
[363561096,1748769033049,-128.34487904,0.00016438,2]
[363561098,1748769033059,-432.19609612,0.00016438,2]
[363561100,1748769033069,-430.0,0.00016438,2]
[363561102,1748769033079,-400.23657272,0.00016438,2]
[363561104,1748769033089,-430.0,0.00016438,2]
[363561106,1748769033099,-430.0,0.00016438,2]
[363561108,1748769033111,-500.0,0.00016438,2]
[363561110,1748769033122,-269.16190268,0.00016438,2]
[363561112,1748769033132,-430.0,0.00016438,2]
[363561114,1748769033142,-430.0,0.00016438,2]
[363561116,1748769033152,-430.0,0.00016438,2]
[363561118,1748769033162,-430.0,0.00016438,2]
[363561120,1748769033172,-430.0,0.00016438,2]
[363561122,1748769033183,-430.0,0.00016438,2]
[363561124,1748769033193,-217.4782507,0.00016438,2]
[363561126,1748769033204,-500.0,0.00016438,2]
[363561128,1748769033214,-500.0,0.00016438,2]
[363561130,1748769033224,-500.0,0.00016438,2]
[363561132,1748769033234,-626.4789578,0.00016438,2]
[363561134,1748769033243,-500.0,0.00016438,2]
[363561136,1748769033253,-430.0,0.00016438,2]
[363561138,1748769033263,-478.09028257,0.00016438,2]